bitfinex-derivatives/quotes_BNBF0:USTF0_20250510
["timestamp","ask_amount","ask_price","bid_price","bid_amount"]
[1746900337993,0.517,656.08,653.68,0.4264628]
[1746900338191,0.517,656.08,653.69,0.4264628]
[1746900338393,0.517,656.08,653.7,0.4264628]
[1746900338688,0.517,656.08,653.71,0.4264628]
[1746900338892,0.517,656.08,653.58,0.26585484]
[1746900338893,0.517,656.08,653.72,0.4264628]
[1746900339091,0.26585281,656.07,653.73,0.4264628]
[1746900339288,0.26585281,656.07,653.74,0.4264628]
[1746900339494,0.26585281,656.07,653.75,0.4264628]
[1746900339795,0.26585281,656.07,653.58,0.26585484]
[1746900340095,0.26585281,656.07,653.59,0.42585657]
[1746900340293,0.26585281,656.07,653.6,0.42585657]
[1746900340492,0.26585281,656.07,653.61,0.42585657]
[1746900340690,0.26585281,656.07,653.62,0.42585657]
[1746900340893,0.26585281,656.07,653.63,0.42585657]
[1746900341093,0.26585281,656.07,653.64,0.42585657]
[1746900341293,0.26585281,656.07,653.65,0.42585657]
[1746900341494,0.26585281,656.07,653.66,0.42585657]
[1746900341694,0.26585281,656.07,653.67,0.42585657]
[1746900341894,0.26585281,656.07,653.68,0.42585657]
[1746900342095,0.26585281,656.07,653.69,0.42585657]
[1746900342394,0.26585281,656.07,653.7,0.42585657]
[1746900342593,0.26585281,656.07,653.71,0.42585657]
[1746900342794,0.26585281,656.07,653.72,0.42585657]
[1746900343093,0.26585281,656.07,653.73,0.42585657]
[1746900343294,0.26585281,656.07,653.74,0.42585657]
[1746900343495,0.26585281,656.07,653.75,0.42567676]
[1746900343792,0.26585281,656.07,653.76,0.42567676]
[1746900343994,0.26585281,656.07,653.77,0.42567676]
[1746900344190,0.26585281,656.07,653.78,0.42567676]
[1746900344395,0.26585281,656.07,653.79,0.42567676]
[1746900344596,0.26585281,656.07,653.8,0.42567676]
[1746900344796,0.26585281,656.07,653.81,0.42567676]
[1746900344996,0.26585281,656.07,653.82,0.42567676]
[1746900345198,1.96604543,656.05,653.83,0.42558118]
[1746900345499,1.96604543,656.05,653.84,0.42558118]
[1746900345693,1.96604543,656.05,653.85,0.42558118]
[1746900345894,1.96604543,656.05,653.86,0.42558118]
[1746900346095,1.96604543,656.05,653.87,0.42558118]
[1746900346397,1.96604543,656.05,653.5,0.96790915]
[1746900346597,0.26589039,656.04,653.51,0.42553979]
[1746900346798,0.26589039,656.04,653.52,0.42553979]
[1746900346991,0.26589039,656.04,653.53,0.42553979]
[1746900347192,0.26589039,656.04,653.54,0.42553979]
[1746900347397,0.26589039,656.04,653.55,0.42553979]
[1746900347593,0.26589039,656.04,653.56,0.42553979]
[1746900347898,0.26589039,656.04,653.57,0.42553979]
[1746900348197,0.26589039,656.04,653.58,0.42553979]
[1746900348397,0.26589039,656.04,653.59,0.42553979]
[1746900348693,0.26589039,656.04,653.6,0.42553979]
[1746900348897,0.26589039,656.04,653.61,0.42548864]
[1746900349094,0.26589039,656.04,653.62,0.42548864]
[1746900349298,1.96604543,656.05,653.63,0.42548864]
[1746900349499,0.26589852,656.03,653.64,0.42551809]
[1746900349700,0.26589852,656.03,653.65,0.42551809]
[1746900349998,0.26589852,656.03,653.66,0.42551809]
[1746900350299,0.26589852,656.03,653.67,0.42551809]
[1746900350499,0.26589852,656.03,653.68,0.42551809]
[1746900350697,0.26589852,656.03,653.69,0.42551358]
[1746900350898,0.26589852,656.03,653.7,0.42551358]
[1746900351100,0.26589852,656.03,653.71,0.42551358]
[1746900351400,0.26589852,656.03,653.72,0.42551358]
[1746900351595,0.26589852,656.03,653.73,0.42551358]
[1746900351800,0.26589852,656.03,653.74,0.42551358]
[1746900351998,0.26589852,656.03,653.75,0.42551358]
[1746900352303,1.96604543,656.05,653.76,0.42551358]
[1746900352504,0.26588125,656.02,653.77,0.42551358]
[1746900352705,0.26588125,656.02,653.78,0.42551358]
[1746900352906,0.26588125,656.02,653.79,0.42551358]
[1746900353103,0.26588125,656.02,653.5,0.96790915]
[1746900353104,1.96604543,655.94,653.8,0.42551358]
[1746900353304,1.96604543,655.94,653.81,0.42551358]
[1746900353504,1.96604543,655.94,653.82,0.42551358]
[1746900353701,1.96604543,655.94,653.83,0.42551358]
[1746900354001,1.96604543,655.94,653.84,0.42551358]
[1746900354205,1.96604543,655.94,653.85,0.42550602]
[1746900354404,1.96604543,655.94,653.86,0.42550602]
[1746900354606,1.96604543,655.94,653.87,0.42550602]
[1746900354805,1.96604543,655.23,653.5,0.96790915]
[1746900355004,1.96604543,655.23,653.51,0.42550685]
[1746900355207,1.96604543,655.23,653.52,0.42550685]
[1746900355403,0.26597371,655.22,653.53,0.42550685]
[1746900355607,0.26597371,655.22,653.54,0.42550685]
[1746900355904,0.26597371,655.22,653.55,0.42547968]
[1746900356104,0.26597371,655.22,653.56,0.42547968]
[1746900356404,0.26597371,655.22,653.57,0.42547968]
[1746900356605,0.26597371,655.22,653.58,0.42547968]
[1746900356803,0.26597371,655.22,653.59,0.42547968]
[1746900357005,0.26597371,655.22,653.6,0.42547968]
[1746900357208,0.26597371,655.22,653.61,0.42547968]
[1746900357407,0.26597371,655.22,653.62,0.42547968]
[1746900357609,0.26597371,655.22,653.63,0.42547968]
[1746900357809,0.26597371,655.22,653.64,0.42547968]
[1746900358010,0.26597371,655.22,653.65,0.42547968]
[1746900358207,1.96604543,655.25,653.66,0.42547968]
[1746900358412,0.26597066,655.21,653.67,0.42547968]
[1746900358610,0.26597066,655.21,653.68,0.42547968]
[1746900358813,0.26597066,655.21,653.69,0.42547968]
[1746900359013,0.26597066,655.21,653.7,0.42547968]
[1746900359212,0.26597066,655.21,653.71,0.42547968]
[1746900359411,0.26597066,655.21,653.72,0.42547968]
[1746900359711,0.26597066,655.21,653.73,0.42547968]
[1746900359912,0.26597066,655.21,653.74,0.42547968]
[1746900360111,0.26597066,655.21,653.75,0.42547968]
[1746900360311,0.26597066,655.21,653.76,0.42547968]
[1746900360507,0.26597066,655.21,653.77,0.42547968]
[1746900360708,0.26597066,655.21,653.78,0.42547968]
[1746900360910,0.26597066,655.21,653.57,0.26597066]
[1746900361109,0.26597066,655.21,653.58,0.42566476]
[1746900361313,1.96604543,655.57,653.59,0.42566476]
[1746900361512,0.26593509,655.2,653.6,0.42566476]
[1746900361713,1.96604543,655.57,653.61,0.42566476]
[1746900361915,1.96604543,655.57,653.62,0.42566476]
[1746900362116,1.96604543,655.57,653.63,0.42566476]
[1746900362312,1.96604543,655.57,653.64,0.42565804]
[1746900362520,0.26591375,655.56,653.65,0.42565804]
[1746900362712,0.26591375,655.56,653.66,0.42565947]
[1746900362911,0.26591375,655.56,653.67,0.42565947]
[1746900363116,0.26591375,655.56,653.68,0.42565947]
[1746900363316,0.26591375,655.56,653.69,0.73161489]
[1746900363515,0.26591375,655.56,653.7,0.42565947]
[1746900363718,1.96604543,655.54,653.7,0.42565947]
[1746900364416,0.26592493,655.53,653.72,0.30594138]
[1746900364617,0.26592493,655.53,653.73,0.42574038]
[1746900364816,0.26592493,655.53,653.74,0.42574038]
[1746900365013,0.26592493,655.53,653.75,0.42574038]
[1746900365319,0.26592493,655.53,653.76,0.42574038]
[1746900365618,0.26592493,655.53,653.77,0.42574038]
[1746900365817,0.26592493,655.53,653.78,0.42574038]
[1746900366020,0.387,655.52,653.79,0.42574038]
[1746900366219,0.387,655.52,653.8,0.42574038]
[1746900366420,0.387,655.52,653.81,0.42574038]
[1746900366614,0.387,655.52,653.82,0.42574038]
[1746900366818,0.387,655.52,653.83,0.42574038]
[1746900367018,0.387,655.52,653.84,0.42574038]
[1746900367219,0.387,655.52,653.85,0.42574038]
[1746900367422,0.26590461,655.51,653.86,0.42574038]
[1746900367623,0.26590461,655.51,653.87,0.42574038]
[1746900367819,0.26590461,655.51,653.88,0.42574038]
[1746900368020,0.26590461,655.51,653.89,0.42574038]
[1746900368222,0.26590461,655.51,653.9,0.42574038]
[1746900368421,0.26590461,655.51,653.91,0.42574038]
[1746900368622,0.26590461,655.51,653.92,0.42574038]
[1746900368822,0.26590461,655.51,653.93,0.42574038]
[1746900369020,0.26590461,655.51,653.94,0.42575759]
[1746900369322,0.26590461,655.51,653.95,0.42575759]
[1746900369523,0.26590461,655.51,653.96,0.42575759]
[1746900369718,0.26590461,655.51,653.97,0.42581551]
[1746900369922,0.26590461,655.51,653.98,0.42581551]
[1746900370224,0.26590461,655.51,653.72,0.30594138]
[1746900370225,0.387,655.52,653.99,0.42581551]
[1746900370426,0.26590563,655.5,654.0,0.42581551]
[1746900370724,0.26590563,655.5,654.01,0.42581551]
[1746900370925,0.26590563,655.5,654.02,0.42581551]
[1746900371126,0.26590563,655.5,654.03,0.42581551]
[1746900371327,0.26590563,655.5,654.04,0.42581551]
[1746900371527,0.26590563,655.5,654.05,0.42581551]
[1746900371827,0.26590563,655.5,654.06,0.42581551]
[1746900372022,0.26590563,655.5,654.07,0.42581551]
[1746900372222,0.26590563,655.5,654.08,0.42581551]
[1746900372423,0.26590563,655.5,654.09,0.42581551]
[1746900372624,0.26590563,655.5,654.1,0.42581551]
[1746900372826,0.26590563,655.5,654.11,0.42581551]
[1746900373024,0.26590563,655.5,653.72,0.30594138]
[1746900373220,0.26590563,655.5,653.73,0.41503403]
[1746900373520,0.26590563,655.5,653.74,0.41503403]
[1746900373725,0.26590563,655.5,653.75,0.41503403]
[1746900373927,0.26590563,655.5,653.76,0.41503403]
[1746900374120,0.26590563,655.5,653.77,0.41503403]
[1746900374323,0.26590563,655.5,653.78,0.41503403]
[1746900374522,0.26590563,655.5,653.79,0.41503403]
[1746900374722,0.26590563,655.5,653.8,0.41503403]
[1746900374922,0.26590563,655.5,653.81,0.41503403]
[1746900375125,0.26590563,655.5,653.82,0.41503403]
[1746900375327,0.26590563,655.5,653.83,0.41503403]
[1746900375527,0.26590563,655.5,653.84,0.41503403]
[1746900375729,0.26590563,655.5,653.85,0.41503403]
[1746900375925,0.26590563,655.5,653.86,0.41503403]
[1746900376125,0.387,655.52,653.87,0.41503403]
[1746900376325,0.387,655.52,653.88,0.41503403]
[1746900376529,0.26590563,655.49,653.89,0.41503403]
[1746900376727,0.26590563,655.49,653.9,0.41503403]
[1746900376929,0.26590563,655.49,653.91,0.41548118]
[1746900377128,0.26590563,655.49,653.92,0.41548118]
[1746900377328,0.26590563,655.49,653.93,0.41548118]
[1746900377526,0.26590563,655.49,653.94,0.41548118]
[1746900377725,0.26590563,655.49,653.95,0.41548118]
[1746900378031,0.26590563,655.49,653.96,0.41548118]
[1746900378231,0.26590563,655.49,653.97,0.41548118]
[1746900378425,0.26590563,655.49,653.98,0.41548118]
[1746900378630,0.26590563,655.49,653.72,0.30594138]
[1746900378829,0.26590563,655.49,653.73,0.41556598]
[1746900379032,0.26590563,655.49,653.74,0.41556598]
[1746900379230,0.26590563,655.49,653.75,0.41556598]
[1746900379431,0.26590563,655.49,653.76,0.41556598]
[1746900379631,0.26590563,655.49,653.77,0.41556598]
[1746900379830,0.26590563,655.49,653.78,0.41556598]
[1746900380031,0.26590563,655.49,653.79,0.41556598]
[1746900380228,0.26590563,655.49,653.8,0.41556598]
[1746900380432,0.26590563,655.49,653.81,0.41560112]
[1746900380633,0.26590563,655.49,653.82,0.41560112]
[1746900380832,0.26590563,655.49,653.83,0.41560112]
[1746900381033,0.26590563,655.49,653.84,0.41560112]
[1746900381232,0.26590563,655.49,653.85,0.41560112]
[1746900381432,0.26590563,655.49,653.86,0.41560112]
[1746900381629,0.26590563,655.49,653.87,0.41560112]
[1746900381834,0.26590563,655.49,653.88,0.41560112]
[1746900382034,0.26590563,655.49,653.89,0.41560112]
[1746900382228,0.57102088,655.49,653.9,0.41577948]
[1746900382430,0.57102088,655.49,653.72,0.30594138]
[1746900382631,0.57102088,655.49,653.73,0.41589796]
[1746900382935,0.57102088,655.49,653.74,0.41589796]
[1746900383131,0.57102088,655.49,653.75,0.41589796]
[1746900383335,0.57102088,655.49,653.76,0.41589796]
[1746900383634,0.57102088,655.49,653.77,0.41589796]
[1746900383830,0.57102088,655.49,653.72,0.30594138]
[1746900384031,0.57102088,655.49,653.73,0.41572371]
[1746900384235,0.57102088,655.49,653.74,0.41572371]
[1746900384432,0.57102088,655.49,653.72,0.30594138]
[1746900384632,0.57102088,655.49,653.73,0.4156423]
[1746900384829,0.57102088,655.49,653.72,0.30594138]
[1746900385033,0.57102088,655.49,653.73,0.41564142]
[1746900385331,0.30511525,655.49,653.72,0.30594138]
[1746900385529,0.26597777,655.48,653.72,0.30594138]
[1746900386136,0.26597777,655.48,653.73,0.41554926]
[1746900386335,0.26597777,655.48,653.72,0.30594138]
[1746900386535,0.26597777,655.48,653.73,0.41542088]
[1746900386732,0.26597777,655.48,653.74,0.41542088]
[1746900386934,0.26597777,655.48,653.75,0.41542088]
[1746900387235,0.26597777,655.48,653.76,0.41553798]
[1746900387431,0.26597777,655.48,653.77,0.30591798]
[1746900387736,0.30512456,655.47,653.77,0.30591798]
[1746900391540,0.26608149,655.46,653.77,0.30591798]
[1746900391744,0.30513387,655.45,653.77,0.30591798]
[1746900392039,0.601,655.44,653.77,0.30591798]
[1746900392339,0.30514318,655.43,653.77,0.30591798]
[1746900394440,0.26609573,655.42,653.77,0.30591798]
[1746900395137,0.30515249,655.41,653.77,0.30591798]
[1746900397441,0.26610998,655.4,653.77,0.30591798]
[1746900397641,0.30516181,655.39,653.77,0.30591798]
[1746900403441,0.26615781,655.38,653.77,0.30591798]
[1746900404847,0.30517578,655.36,653.77,0.30591798]
[1746900406451,0.2661914,655.35,653.77,0.30591798]
[1746900406750,0.30518975,655.33,653.77,0.30591798]
[1746900409447,0.26618733,655.32,653.77,0.30591798]
[1746900409651,0.30519906,655.31,653.77,0.30591798]
[1746900411454,0.569,655.3,653.77,0.30591798]
[1746900411755,0.30520838,655.29,653.77,0.30591798]
[1746900412554,0.26616595,655.28,653.77,0.30591798]
[1746900412756,0.30521769,655.27,653.77,0.30591798]
[1746900415664,0.26616595,655.26,653.77,0.30591798]
[1746900415862,0.30522701,655.25,653.77,0.30591798]
[1746900418456,0.26617002,655.24,653.77,0.30591798]
[1746900421161,0.30522701,655.25,653.77,0.30591798]
[1746900421567,0.26616697,655.23,653.77,0.30591798]
[1746900424275,0.30522701,655.25,653.77,0.30591798]
[1746900424467,0.26613033,655.22,653.77,0.30591798]
[1746900426075,0.25371877,655.22,653.77,0.30591798]
[1746900426675,0.26062369,655.21,653.77,0.30591798]
[1746900427575,0.26614356,655.2,653.77,0.30591798]
[1746900427971,0.26062369,655.19,653.77,0.30591798]
[1746900430478,0.2661405,655.18,653.77,0.30591798]
[1746900431072,0.26062369,655.17,653.77,0.30591798]
[1746900433478,0.26614763,655.16,653.77,0.30591798]
[1746900433979,0.26062369,655.15,653.77,0.30591798]
[1746900434979,0.26062369,655.14,653.77,0.30591798]
[1746900435377,0.77662369,655.13,653.77,0.30591798]
[1746900435683,0.26062369,655.12,653.77,0.30591798]
[1746900435981,0.26062369,655.11,653.77,0.30591798]
[1746900436379,0.26062369,655.1,653.77,0.30591798]
[1746900436580,0.52678557,655.1,653.77,0.30591798]
[1746900436882,0.26062369,655.09,653.77,0.30591798]
[1746900437283,0.26062369,655.08,653.77,0.30591798]
[1746900437481,0.26062369,655.09,653.77,0.30591798]
[1746900437782,0.26062369,655.08,653.77,0.30591798]
[1746900438882,0.26062369,655.09,653.77,0.30591798]
[1746900439186,0.26062369,655.08,653.77,0.30591798]
[1746900439584,0.52675096,655.07,653.77,0.30591798]
[1746900440384,0.26062369,655.06,653.77,0.30591798]
[1746900440585,0.26612727,655.07,653.77,0.30591798]
[1746900440884,0.26126295,655.06,653.77,0.30591798]
[1746900441087,0.26126295,655.05,653.77,0.30591798]
[1746900441385,0.26126295,655.04,653.77,0.30591798]
[1746900441584,0.26126295,655.03,653.77,0.30591798]
[1746900441986,0.26126295,655.02,653.77,0.30591798]
[1746900442384,0.26126295,655.01,653.77,0.30591798]
[1746900442581,0.5273831,655.01,653.77,0.30591798]
[1746900442786,0.26126295,655.0,653.77,0.30591798]
[1746900443190,0.26126295,654.99,653.77,0.30591798]
[1746900443484,0.26126295,654.98,653.77,0.30591798]
[1746900443688,0.26126295,655.0,653.77,0.30591798]
[1746900445590,0.26612117,654.99,653.77,0.30591798]
[1746900445890,0.26126295,654.98,653.77,0.30591798]
[1746900448485,0.26612422,654.97,653.77,0.30591798]
[1746900448789,0.26126295,654.96,653.77,0.30591798]
[1746900451393,0.26126295,654.95,653.77,0.30591798]
[1746900451588,0.5274116,654.95,653.77,0.30591798]
[1746900451991,0.26126295,654.94,653.77,0.30591798]
[1746900452290,0.26126295,654.93,653.77,0.30591798]
[1746900452590,0.26126295,654.92,653.77,0.30591798]
[1746900453091,0.26126295,654.91,653.77,0.30591798]
[1746900453392,0.26126295,654.9,653.77,0.30591798]
[1746900453694,0.26126295,654.89,653.77,0.30591798]
[1746900453994,0.26126295,654.88,653.77,0.30591798]
[1746900454294,0.26126295,654.87,653.77,0.30591798]
[1746900454491,0.52741668,654.87,653.77,0.30591798]
[1746900454694,0.26126295,654.86,653.77,0.30591798]
[1746900455194,0.447,654.85,653.77,0.30591798]
[1746900455495,0.26126295,654.84,653.77,0.30591798]
[1746900457496,0.26617613,654.83,653.77,0.30591798]
[1746900457793,0.26126295,654.82,653.77,0.30591798]
[1746900460102,0.26126295,654.81,653.77,0.30591798]
[1746900460401,0.26126295,654.82,653.77,0.30591798]
[1746900460700,0.26618529,654.8,653.77,0.30591798]
[1746900460897,0.26126295,654.79,653.77,0.30591798]
[1746900463100,0.26126295,654.78,653.77,0.30591798]
[1746900463496,0.26126295,654.79,653.77,0.30591798]
[1746900463701,0.2661914,654.77,653.77,0.30591798]
[1746900464400,0.26126295,654.76,653.77,0.30591798]
[1746900465100,0.26126295,654.75,653.77,0.30591798]
[1746900465497,0.26126295,654.74,653.77,0.30591798]
[1746900465900,0.26126295,654.73,653.77,0.30591798]
[1746900466197,0.26126295,654.72,653.77,0.30591798]
[1746900466498,0.26126295,654.71,653.77,0.30591798]
[1746900466803,0.26126295,654.7,653.77,0.30591798]
[1746900467901,0.26126295,654.69,653.77,0.30591798]
[1746900468203,0.26126295,654.68,653.77,0.30591798]
[1746900468807,0.26126295,654.67,653.77,0.30591798]
[1746900469203,0.26126295,654.71,653.77,0.30591798]
[1746900469506,0.26126295,654.7,653.77,0.30591798]
[1746900469906,0.26126295,654.69,653.77,0.30591798]
[1746900470209,0.26126295,654.68,653.77,0.30591798]
[1746900470605,0.26126295,654.71,653.77,0.30591798]
[1746900472509,0.26617104,654.7,653.77,0.30591798]
[1746900472909,0.26126295,654.69,653.77,0.30591798]
[1746900477715,0.26617104,654.7,653.77,0.30591798]
[1746900478315,1.96604543,655.27,653.77,0.30591798]
[1746900478616,0.26613847,654.69,653.77,0.30591798]
[1746900478815,1.96604543,655.28,653.77,0.30591798]
[1746900479015,0.26613949,654.68,653.77,0.30591798]
[1746900479312,1.96604543,655.28,653.77,0.30591798]
[1746900479616,0.26613949,654.67,653.77,0.30591798]
[1746900479817,0.26108011,654.69,653.77,0.30591798]
[1746900480118,0.26613949,654.66,653.77,0.30591798]
[1746900480317,0.26108011,654.65,653.77,0.30591798]
[1746900481518,0.26614865,654.64,653.77,0.30591798]
[1746900481716,0.52722876,654.64,653.77,0.30591798]
[1746900482019,0.26108011,654.63,653.77,0.30591798]
[1746900482319,0.26108011,654.62,653.77,0.30591798]
[1746900482716,0.26108011,654.61,653.77,0.30591798]
[1746900483018,0.26108011,654.63,653.77,0.30591798]
[1746900484418,0.26615984,654.62,653.77,0.30591798]
[1746900484723,0.26108011,654.61,653.77,0.30591798]
[1746900487523,0.26618122,654.6,653.77,0.30591798]
[1746900488219,0.26108011,654.59,653.77,0.30591798]
[1746900489523,0.26108011,654.58,653.77,0.30591798]
[1746900490029,0.26108011,654.57,653.77,0.30591798]
[1746900490324,0.26108011,654.56,653.77,0.30591798]
[1746900490528,0.527299,654.56,653.77,0.30591798]
[1746900491329,0.26108011,654.55,653.77,0.30591798]
[1746900491826,0.26108011,654.54,653.77,0.30591798]
[1746900492226,0.26108011,654.53,653.77,0.30591798]
[1746900492626,0.26108011,654.52,653.77,0.30591798]
[1746900493027,0.26108011,654.51,653.77,0.30591798]
[1746900493428,0.26108011,654.5,653.77,0.30591798]
[1746900493624,0.52736418,654.5,653.77,0.30591798]
[1746900494230,0.26628407,654.5,653.77,0.30591798]
[1746900494624,0.26108011,654.49,653.77,0.30591798]
[1746900495324,0.26628407,654.5,653.77,0.30591798]
[1746900495730,0.26100869,654.49,653.77,0.30591798]
[1746900496430,0.26100869,654.83,653.77,0.30591798]
[1746900496631,0.26628,654.48,653.77,0.30591798]
[1746900496832,0.56643613,654.82,653.77,0.30591798]
[1746900497032,0.26628204,654.47,653.77,0.30591798]
[1746900497433,0.30542744,654.82,653.77,0.30591798]
[1746900497630,0.26628204,654.46,653.77,0.30591798]
[1746900497834,0.30542744,654.82,653.77,0.30591798]
[1746900497835,0.2609522,654.45,653.77,0.30591798]
[1746900498134,0.52723424,654.45,653.77,0.30591798]
[1746900498328,0.26628204,654.45,653.77,0.30591798]
[1746900498633,0.2609522,654.44,653.77,0.30591798]
[1746900499531,0.26626472,654.43,653.77,0.30591798]
[1746900500335,0.2609522,654.42,653.77,0.30591798]
[1746900502430,0.26627083,654.41,653.77,0.30591798]
[1746900502833,0.2609522,654.4,653.77,0.30591798]
[1746900505535,0.30542744,654.82,653.77,0.30591798]
[1746900505739,0.26625453,654.39,653.77,0.30591798]
[1746900505938,0.26099872,654.81,653.77,0.30591798]
[1746900506137,0.26625453,654.38,653.77,0.30591798]
[1746900506538,0.26099872,654.37,653.77,0.30591798]
[1746900506833,0.52724511,654.37,653.77,0.30591798]
[1746900507033,0.26624639,654.37,653.77,0.30591798]
[1746900507338,0.26099872,654.36,653.77,0.30591798]
[1746900508534,0.26624639,654.35,653.77,0.30591798]
[1746900508938,0.26099872,654.34,653.77,0.30591798]
[1746900509640,0.48,654.33,653.77,0.30591798]
[1746900510139,0.26099872,654.32,653.77,0.30591798]
[1746900511543,0.26629223,654.31,653.77,0.30591798]
[1746900511840,0.26099872,654.3,653.77,0.30591798]
[1746900514541,0.26632585,654.29,653.77,0.30591798]
[1746900514741,0.26099872,654.28,653.77,0.30591798]
[1746900517537,0.26634114,654.27,653.77,0.30591798]
[1746900518044,0.26099872,654.26,653.77,0.30591798]
[1746900520748,0.26634012,654.25,653.77,0.30591798]
[1746900521146,0.26099872,654.24,653.77,0.30591798]
[1746900523750,0.26638293,654.23,653.77,0.30591798]
[1746900524050,0.26099872,654.22,653.77,0.30591798]
[1746900526453,0.26099872,654.32,653.77,0.30591798]
[1746900526653,0.26638089,654.21,653.77,0.30591798]
[1746900526850,0.26099872,654.32,653.77,0.30591798]
[1746900527051,0.26638089,654.2,653.77,0.30591798]
[1746900527353,0.26099872,654.32,653.77,0.30591798]
[1746900527553,0.52737961,654.19,653.77,0.30591798]
[1746900527956,0.26099872,654.18,653.77,0.30591798]
[1746900528254,0.26633095,654.18,653.77,0.30591798]
[1746900528555,0.26099872,654.17,653.77,0.30591798]
[1746900531155,0.26633095,654.18,653.77,0.30591798]
[1746900531455,0.26088624,654.17,653.77,0.30591798]
[1746900532555,0.26637784,654.16,653.77,0.30591798]
[1746900533155,0.26088624,654.15,653.77,0.30591798]
[1746900535457,0.541,654.3,653.77,0.30591798]
[1746900535666,0.26636866,654.14,653.77,0.30591798]
[1746900535954,0.26090227,654.29,653.77,0.30591798]
[1746900536159,0.26636866,654.13,653.77,0.30591798]
[1746900536359,0.26090227,654.29,653.77,0.30591798]
[1746900536566,0.26636866,654.12,653.77,0.30591798]
[1746900536859,0.26090227,654.11,653.77,0.30591798]
[1746900537056,0.52726889,654.11,653.77,0.30591798]
[1746900537761,0.26090227,654.1,653.77,0.30591798]
[1746900538561,0.26634216,654.09,653.77,0.30591798]
[1746900541262,0.541,654.3,653.77,0.30591798]
[1746900541662,0.26096141,654.29,653.77,0.30591798]
[1746900541859,0.52729236,654.29,653.77,0.30591798]
[1746900542259,0.26096141,654.28,653.77,0.30591798]
[1746900547569,0.26635133,654.27,653.77,0.30591798]
[1746900547970,0.26096141,654.26,653.77,0.30591798]
[1746900550671,0.2663391,654.25,653.77,0.30591798]
[1746900550973,0.26096141,654.24,653.77,0.30591798]
[1746900553575,0.26633706,654.23,653.77,0.30591798]
[1746900553775,0.26096141,654.22,653.77,0.30591798]
[1746900556477,0.26633299,654.21,653.77,0.30591798]
[1746900556680,0.26096141,654.2,653.77,0.30591798]
[1746900558782,0.26633299,654.21,653.77,0.30591798]
[1746900559282,0.541,654.3,653.77,0.30591798]
[1746900559583,0.26632279,654.2,653.77,0.30591798]
[1746900559882,0.26081692,654.19,653.77,0.30591798]
[1746900560081,0.52713971,654.19,653.77,0.30591798]
[1746900560280,0.26632279,654.19,653.77,0.30591798]
[1746900560580,0.26081692,654.18,653.77,0.30591798]
[1746900562784,0.26631464,654.17,653.77,0.30591798]
[1746900565285,0.541,654.3,653.77,0.30591798]
[1746900565483,0.26633095,654.16,653.77,0.30591798]
[1746900565879,0.26085013,654.15,653.77,0.30591798]
[1746900566384,0.26085013,654.29,653.77,0.30591798]
[1746900566584,0.26633095,654.14,653.77,0.30591798]
[1746900566880,0.26085013,654.29,653.77,0.30591798]
[1746900567082,0.26633095,654.13,653.77,0.30591798]
[1746900567384,0.26085013,654.29,653.77,0.30591798]
[1746900567580,0.541,654.3,653.77,0.30591798]
[1746900567781,0.26633095,654.12,653.77,0.30591798]
[1746900568078,0.541,654.3,653.77,0.30591798]
[1746900568279,0.26635337,654.11,653.77,0.30591798]
[1746900568483,0.26088333,654.29,653.77,0.30591798]
[1746900569681,0.26636152,654.28,653.77,0.30591798]
[1746900570287,0.26088333,654.27,653.77,0.30591798]
[1746900571685,0.2663656,654.26,653.77,0.30591798]
[1746900572381,0.26085431,654.25,653.77,0.30591798]
[1746900574783,0.30569821,654.24,653.77,0.30591798]
[1746900575189,0.26085431,654.23,653.77,0.30591798]
[1746900575490,0.56655719,654.23,653.77,0.30591798]
[1746900575889,0.26085431,654.22,653.77,0.30591798]
[1746900576492,0.56656187,654.22,653.77,0.30591798]
[1746900576689,0.26085431,654.21,653.77,0.30591798]
[1746900577191,0.30570756,654.22,653.77,0.30591798]
[1746900577492,0.26088868,654.21,653.77,0.30591798]
[1746900577694,0.26640842,654.2,653.77,0.30591798]
[1746900578289,0.26088868,654.19,653.77,0.30591798]
[1746900578493,0.26088868,654.18,653.77,0.30591798]
[1746900578895,0.26088868,654.19,653.77,0.30591798]
[1746900579391,0.26088868,654.18,653.77,0.30591798]
[1746900579592,0.30573092,654.17,653.77,0.30591798]
[1746900580092,0.5666196,654.17,653.77,0.30591798]
[1746900580295,0.26088868,654.16,653.77,0.30591798]
[1746900580595,0.5273175,654.16,653.77,0.30591798]
[1746900580993,0.26088868,654.15,653.77,0.30591798]
[1746900581296,0.30574494,654.14,653.77,0.30591798]
[1746900581795,0.26088868,654.13,653.77,0.30591798]
[1746900582094,0.30575429,654.12,653.77,0.30591798]
[1746900582493,0.26088868,654.11,653.77,0.30591798]
[1746900583594,0.2664635,654.1,653.77,0.30591798]
[1746900583795,0.26088868,654.09,653.77,0.30591798]
[1746900586292,0.30577299,654.08,653.77,0.30591798]
[1746900586690,0.26088868,654.07,653.77,0.30591798]
[1746900587397,0.56666634,654.07,653.77,0.30591798]
[1746900587793,0.26088868,654.06,653.77,0.30591798]
[1746900589597,0.26650329,654.05,653.77,0.30591798]
[1746900589791,0.26088868,654.04,653.77,0.30591798]
[1746900592199,0.30579637,654.03,653.77,0.30591798]
[1746900592799,0.26088868,654.02,653.77,0.30591798]
[1746900593103,0.30580572,654.01,653.77,0.30591798]